Cogmind - Beta 13 @@@ ROGUE MODE // 2024.02.29 @ 18:01:25 Player: Kaz Result: Destroyed by as-07400 with Assembled Rifle Performance ------------- Evolutions (0) 0 Regions Visited (2) 400 Robots Destroyed (17) 85 Value Destroyed (309) 309 Prototype IDs (2) 40 Alien Tech Used (0) 0 Bonus (0) 0 TOTAL SCORE: 834 Bonus ------- None Cogmind --------- Core Integrity 0/250 Matter 205/300 Energy 70/100 System Corruption 0% Temperature Warm (138) Movement Core (1400) Ox27 Location -10/Mines Parts ------- > --- POWER (1) -------- (None) > --- PROPULSION (2) --- (None) > --- UTILITY (2) ------ Huge Storage Unit Utility Shielding > --- WEAPON (2) ------- Assault Rifle > --- INVENTORY (25) --- Wheel Wheel Wheel Wheel Wheel Wheel Small Storage Unit Large Storage Unit Large Storage Unit High-capacity Storage Unit Huge Storage Unit High-capacity Matter Pod (200) High-capacity Matter Pod (22) Assault Rifle Assault Rifle Assault Rifle Assault Rifle Assault Rifle Assault Rifle Light Cannon Peak State ------------ > --- POWER ------------ Light Ion Engine > --- PROPULSION ------- Compact Wheel Compact Wheel > --- UTILITY ---------- Huge Storage Unit Huge Storage Unit > --- WEAPON ----------- Assault Rifle Light Assault Rifle > --- INVENTORY -------- Wheel Wheel Small Storage Unit Large Storage Unit Large Storage Unit High-capacity Matter Pod High-capacity Matter Pod Utility Shielding Medium Laser Small Laser Assault Rifle Assault Rifle Assault Rifle Assault Rifle Assault Rifle Assault Rifle Assault Rifle Assault Rifle Assault Rifle Light Cannon [Rating: 9] Favorites ----------- Power Light Ion Engine Engine Light Ion Engine Propulsion Compact Wheel Wheel Compact Wheel Utility Huge Storage Unit Storage Huge Storage Unit Weapon Assault Rifle Energy Gun Medium Laser Ballistic Gun Assault Rifle Build | -11 -10 -10 ------- Run | Yrd Mat Min Slots Evolved . | . . . Power . | . . . Propulsion . | . . . Utility . | . . . Weapon . | . . . Parts Attached 21 | 6 13 2 Power 2 | 1 1 . Engine 2 | 1 1 . Core . | . . . Reactor . | . . . Propulsion 5 | 2 3 . Treads . | . . . Leg . | . . . Wheel 5 | 2 3 . Hover . | . . . Flight . | . . . Utility 5 | 1 3 1 Device . | . . . Storage 4 | 1 3 . Processor . | . . . Hackware . | . . . Protection 1 | . . 1 Artifact . | . . . Weapon 9 | 2 6 1 Energy Gun 3 | 2 1 . Energy Cannon . | . . . Ballistic Gun 6 | . 5 1 Ballistic Cannon . | . . . Launcher . | . . . Special Weapon . | . . . Impact Weapon . | . . . Slashing Weapon . | . . . Piercing Weapon . | . . . Special Melee Weapon . | . . . Unidentified Prototypes . | . . . Parts Lost 7 | . 2 5 Power 2 | . 1 1 Propulsion 3 | . 1 2 Utility . | . . . Weapon 2 | . . 2 Highest Loss Streak 5 | . 1 5 To Critical Strikes . | . . . Average Slot Usage (%) 95 | . 95 92 Engine 12 | . 12 14 Wheel 26 | . 26 25 Storage 27 | . 27 28 Energy Gun 5 | . 5 . Ballistic Gun 22 | . 22 23 Naked Turns . | . . . Heaviest Build 167 | 11 167 127 Greatest Support 32 | 32 32 32 Greatest Overweight (x) 10 | . 10 3 Average Overweight (x) 3 | . 4 3 Largest Inventory Capacity 25 | 8 25 25 Average Capacity 23 | 6 24 25 Most Carried 25 | 1 25 21 Average Carried 14 | . 15 20 Final Capacity 25 | 8 25 25 Final Carried 21 | 1 21 20 Class Distribution -------------------- 100% | Mutant Dominant Class ---------------- Mutant | -10/Materials Mutant | -10/Mines Resources | -11 -10 -10 ----------- Run | Yrd Mat Min Matter Collected 811 | 194 617 . Remotely . | . . . Salvage Created 612 | . 584 28 Parts 32 | . 32 . Haulers Intercepted 2 | . 2 . Recyclers Shooed 1 | . 1 . Parts Field Recycled . | . . . Retrieved Matter . | . . . Parts Self-Destructed . | . . . Prevented . | . . . Kills | -11 -10 -10 ------- Run | Yrd Mat Min Combat Hostiles Destroyed 12 | . 10 2 Guns 12 | . 10 2 Classes Destroyed 7 | . 6 1 Builder 2 | . 2 . Hauler 2 | . 2 . Recycler 1 | . 1 . Watcher 2 | . 2 . Swarmer 4 | . 4 . Grunt 6 | . 6 . Assembled 2 | . . 2 Best Kill Streak 2 | . 2 2 Combat Bots Only 2 | . 2 2 Max Kills in Single Turn 1 | . 1 1 Gunslinging . | . . . Exploded . | . . . Melee . | . . . Uniques/NPCs Destroyed . | . . . Combat | -11 -10 -10 -------- Run | Yrd Mat Min Hostile Shots Fired 107 | . 56 51 Missed 24 | . 15 9 Damage Taken 969 | . 432 537 Core 258 | . 134 124 Absorbed by Shields . | . . . Redirected to Shielding 3 | . . 3 Core Remaining (%) 100 | 100 . . Volleys Fired 72 | . 62 10 Largest 2 | . 2 2 Hottest 90 | . 90 40 Shots Fired 138 | . 123 15 Gun 138 | . 123 15 Cannon . | . . . Launcher . | . . . Special . | . . . Kinetic 119 | . 104 15 Thermal 19 | . 19 . Explosive . | . . . Electromagnetic . | . . . Robot Hit Streak 11 | . 11 3 Robot Miss Streak 6 | . 6 2 Penetration Max . | . . . Secondary Targets 2 | . 2 . Max Gunslinging Chain 1 | . 1 . Shots Hit Robots 83 | . 75 8 Core Hits 30 | . 26 4 Critical Kills . | . . . Critical Parts Destroyed . | . . . Critical Strikes 2 | . 2 . Burn 2 | . 2 . Melee Attacks . | . . . Impact . | . . . Slashing . | . . . Piercing . | . . . Sneak Attacks . | . . . Combat Hostiles . | . . . Follow-up Attacks . | . . . Damage Inflicted 1015 | . 925 90 Guns 965 | . 875 90 Cannons . | . . . Explosions . | . . . Melee . | . . . Ramming 50 | . 50 . Kinetic 790 | . 700 90 Thermal 175 | . 175 . Explosive . | . . . Electromagnetic . | . . . Impact . | . . . Slashing . | . . . Piercing . | . . . Highest Corruption . | . . . Average Corruption . | . . . Corruption Purged . | . . . Corruption Blocked . | . . . Overload Shots . | . . . Overflow Damage . | . . . Projectiles . | . . . Explosions . | . . . Melee . | . . . Knockbacks . | . . . Impact . | . . . Kinetic . | . . . Secondary . | . . . Self-Inflicted Damage 25 | . 25 . Shots . | . . . Rammed 1 | . 1 . Targets Rammed 1 | . 1 . Kicked . | . . . Crushed . | . . . Highest Temperature 102 | . 60 102 Average Temperature 20 | . 13 65 Received Heat Transfer 410 | . 150 260 Siege Activations . | . . . Robots Corrupted . | . . . Combat Hostiles . | . . . Parts Fried 7 | . 7 . Impact Corruptions . | . . . Robots Melted . | . . . Combat Hostiles . | . . . Parts Melted 1 | . 1 . Heat Transferred 642 | . 642 . Parts Sabotaged . | . . . Parts Stolen . | . . . Parts Stripped . | . . . Power Chain Reactions . | . . . Alert | -11 -10 -10 ------- Run | Yrd Mat Min Peak Influence 230 | . 230 39 Initial 39 | . . 39 Average 108 | . 116 33 Maximum Alert Level 1 | . 1 . Low Security (%) 94 | 100 94 100 Level 1 5 | . 5 . Level 2 . | . . . Level 3 . | . . . Level 4 . | . . . Level 5 . | . . . High Security . | . . . Max Security . | . . . Squads Dispatched 4 | . 4 . Investigation 2 | . 2 . Extermination . | . . . Reinforcement 2 | . 2 . Assault . | . . . Garrison . | . . . Intercept . | . . . Searches Triggered . | . . . Construction Impeded . | . . . Haulers Reinforced . | . . . Active Scanning Responses . | . . . Cargo Convoy Interrupts . | . . . Stealth | -11 -10 -10 --------- Run | Yrd Mat Min Distress Signals 1 | . 1 . Communications Jammed . | . . . Distress Signals . | . . . Times Spotted 36 | . 18 18 Peak Tracking Total 19 | . 3 19 Tactical Retreats 2 | . 1 1 Traps | -11 -10 -10 ------- Run | Yrd Mat Min Traps Triggered 2 | . 2 . Indirectly . | . . . Trap Hack Attempts . | . . . Triggered . | . . . Disarmed . | . . . Reprogrammed 6 | . 6 . Reused 5 | . 5 . Traps Extracted . | . . . Installed . | . . . Triggered 5 | . 5 . Machines | -11 -10 -10 ---------- Run | Yrd Mat Min Machines Disabled . | . . . Max in Single Turn . | . . . Machines Repaired . | . . . Machines Dismantled . | . . . Machines Sabotaged . | . . . Overloaded Fab Kills . | . . . Hacking | -11 -10 -10 --------- Run | Yrd Mat Min Machines Accessed 4 | . 4 . Terminals 4 | . 4 . Fabricators . | . . . Repair Stations . | . . . Recycling Units . | . . . Scanalyzers . | . . . Garrison Access . | . . . Total Hacks 19 | . 19 . Successful 7 | . 7 . Failed 12 | . 12 . Catastrophic 2 | . 2 . Database Lockouts . | . . . Manual . | . . . Terminals 19 | . 19 . Fabricators . | . . . Repair Stations . | . . . Recycling Units . | . . . Scanalyzers . | . . . Garrison Access . | . . . Terminal Hacks 7 | . 7 . Record 1 | . 1 . Prototype ID Bank 1 | . 1 . Emergency Access Points 1 | . 1 . Locate Traps 1 | . 1 . Reprogram Traps 1 | . 1 . Hauler Manifests 1 | . 1 . Registered Components 1 | . 1 . Fabricator Hacks . | . . . Repair Station Hacks . | . . . Recycling Unit Hacks . | . . . Scanalyzer . | . . . Garrison Access Hacks . | . . . Unauthorized Hacks . | . . . Terminals . | . . . Fabricators . | . . . Repair Stations . | . . . Recycling Units . | . . . Scanalyzers . | . . . Garrison Access . | . . . Data Cores Recovered . | . . . Used . | . . . Hacking Detections 4 | . 4 . Full Trace Events 3 | . 3 . Feedback Events . | . . . Feedback Blocked . | . . . Robot Schematics Acquired . | . . . Robots Built . | . . . Authchips . | . . . Time . | . . . Total Robot Build Rating . | . . . Part Schematics Acquired . | . . . Parts Built . | . . . Authchips . | . . . Time . | . . . Total Part Build Rating . | . . . Parts Repaired . | . . . Time . | . . . Parts Recycled . | . . . Recycled Matter . | . . . Retrieved Matter . | . . . Retrieved Components . | . . . Parts Scanalyzed . | . . . Part Schematics Acquired . | . . . Parts Damaged . | . . . Bothacking | -11 -10 -10 ------------ Run | Yrd Mat Min Used RIF Installer . | . . . Robots Hacked . | . . . Non-combat . | . . . Combat . | . . . Robot Hacks Applied . | . . . Relay Couplers Released . | . . . Fabnet Peak Effective % . | . . . Robots Rewired . | . . . Allies Hacked . | . . . Hacks Repelled . | . . . Allies | -11 -10 -10 -------- Run | Yrd Mat Min Total Allies . | . . . Largest Group . | . . . Highest-Rated Group . | . . . Highest-Rated Ally . | . . . Total Orders . | . . . Ally Attacks . | . . . Total Damage . | . . . Kills . | . . . Allies Corrupted . | . . . Allies Melted . | . . . Intel | -11 -10 -10 ------- Run | Yrd Mat Min Robot Analysis Total . | . . . Derelict Logs Recovered . | . . . Drone Launches . | . . . Drone Recoveries . | . . . Exploration | -11 -10 -10 ------------- Run | Yrd Mat Min Turns Passed 1376 | 44 1266 66 Spaces Moved 704 | 39 638 27 Core 8 | 8 . . Treads . | . . . Legs . | . . . Wheels 696 | 31 638 27 Hover . | . . . Flight . | . . . Fastest Speed 50 | 50 100 145 Average Speed 155 | 89 160 145 Slowest Speed 250 | 100 250 145 Overloaded Moves . | . . . Propulsion Burnouts . | . . . Robots Hopped . | . . . Cave-ins Triggered . | . . . Exploration Rate (%) 35 | 4 92 10 Regions Visited 2 Branch Regions 1 Pre-discovered Areas . | . . . Known Exits Taken . | . . . Unknown Exits Taken 2 | 1 1 . Scrap Searched . | . . . Spaces Dug . | . . . Terrain Destroyed . | . . . Melee . | . . . Projectile . | . . . AOE . | . . . Terrain Rammed . | . . . Walls Destroyed . | . . . Machines Disabled . | . . . Actions | -11 -10 -10 --------- Run | Yrd Mat Min Total 848 | 45 764 39 Wait 16 | . 16 . Move 702 | 38 637 27 Hop . | . . . Pick Up 31 | 1 30 . Fast Attach 6 | 6 . . Attach 8 | . 7 1 Detach . | . . . Swap 7 | . 6 1 Drop 5 | . 5 . Fire 72 | . 62 10 Melee . | . . . Ram 1 | . 1 . Kick . | . . . Crush . | . . . Escape Stasis . | . . . Rewire . | . . . Trap . | . . . Miscellaneous . | . . . Route ------- -11/Scrapyard -10/Materials (discovered 4 exits: [*Mat x3] / [*Min]) -10/Mines History --------- Turn | Location | Event 8 | -11/Scrapyard | Discovered new exit (range 16) 45 | -11/Scrapyard | Entered Materials 311 | -10/Materials | Build established: Mutant 572 | -10/Materials | Discovered new exit (range 8) 598 | -10/Materials | Discovered new exit (range 10) 859 | -10/Materials | Discovered new exit (range 5) 1065 | -10/Materials | Discovered new exit (range 16) 1083 | -10/Materials | Core integrity fell below 50% 1311 | -10/Materials | Entered Mines 1343 | -10/Mines | Assembled infested the area 1372 | -10/Mines | Core integrity fell below 20% 1377 | -10/Mines | Destroyed by as-07400 with Assembled Rifle Last Messages --------------- 01267_ R-06 Scavenger collects Lrg. Storage Unit. 01268_ Acquired 54 matter. 01269_ Acquired 51 matter. 01271_ R-06 Scavenger collects Seismic Detector. 01274_ R-06 Scavenger collects Lrg. Storage Unit. 01280_ R-06 Scavenger collects Lgt. Treads. 01285_ K-01 Serf cleans the Material Compactor. 01289_ K-01 Serf collects debris. LOCATION=UNKNOWN GOAL=ESCAPE 01343_ ALERT: Infestation in the mines, dispatching Demolisher response squad. 01358_ Assault Rifle destroyed. 01364_ as-40699 destroyed. 01367_ Com. Wheel destroyed. 01368_ Critical hit (Burn: +80). 01374_ as-99672 destroyed. 01374_ Assault Rifle destroyed. 01374_ Com. Wheel destroyed. 01375_ Lgt. Ion Engine destroyed. Map ----- +----------------------------------------------------+ | ???????????????????????# #???? | | ????????????????????????# #####? | | ???????????????????????## #? | | ???????????????????????# #? | | ???????????????????????# ## #? | | ???????????????????????## ### #? | | ????????????????????????## #?# #? | | ?????????????????????????# #?# #? | | ?????????????????????????# #?# #? | | ???????????????????????#? #?# #? | | ???????????????????????# ###?# #? | | ???????????????????????# #???# #? | | ???????????????????# ### #??# #? | | ???????????????????# #?# #? | | ??????????????????????# t ## #? | | ????????????????????### #? | | ??????????????? """ #? | | ????????????????????### """ ##? | | ??????????????????????# """ #?? | | ??????????????????????## #?? | | ???????????????????????## #?? | | ???????????????????????## a #?? | | ???????????????????#####aaa ##?? | | ??????????????# a ##??? | | ??????????????# #########aa###???? | | ????????????????????????#@##?????? | | ????????????????????????#%#??????? | | ????????????????????????#a#??????? | | ????????????????????????# #??????? | | ???????????????????????? #??????? | | ???????????????????????? ??????? | | ???????????????????????? ??????? | | ???????????????????????? ??????? | | ???????????????????????? ??????? | | ????????????????????????a #??????? | | ??????????????????????? ???????? | | ??????????????????????? ???????? | | ??????????????????????? ???????? | | ???????????????????????## ???????? | | ?????????????????????????;???????? | | ?????????????????????????#???????? | | ?????????????????????????????????? | | ?????????????????????????????????? | | ?????????????????????????????????? | | ?????????????????????????????????? | | ?????????????????????????????????? | | ?????????????????????????????????? | | ?????????????????????????????????? | | ?????????????????????????????????? | | ?????????????????????????????????? | +----------------------------------------------------+ Best States ------------- Heat Dissipation 25 Energy Generation 10 Energy Capacity 125 Matter Stores 300 Matter Capacity 300 Sight Range 16 Terrain Scan Density 10 Evasion (%) 50 Item Schematics ----------------- None Robot Schematics ------------------ None Fabricated ------------ Nothing Alien Tech Used ----------------- None Achievements -------------- None Challenges ------------ None Game ------ Seed NovaMultitargetingPit Manual? 0 Play Time 00:12:04 Cumulative 132.3 hours Start 2024.02.29 @ 17:50:14 End 2024.02.29 @ 18:01:25 Sessions 1 Manual Loads 0 Difficulty Rogue Special Mode None Game No. 74 Rogue 62 Adventurer 12 Explorer 0 Win Type - Total 1 Types 1/0/0/0/0/0/0/0/0 Lore% 19 Gallery% 36 Achievement% 29 Wizard Run 0 Options --------- Layout 1 ASCII 0 Keyboard 0 Movement Mouse Keybinds 0 Fullscreen 1 Font 32/SmallcapsGlow Map View 77x35 Zoom Use 0% Tactical HUD 1 Map Filters NONE Filters NONE Steam 1 RUN: 062841c8-3c3b-492d-b04b-541ba256bc32